[Event "Gibraltar Junior Intl U16 2019"]
[Site "Caleta"]
[Date "2019.08.18"]
[Round "4.2"]
[White "Cesar Maestre, Bernardo"]
[Black "Llena Velarde, David"]
[Result "1-0"]
[ECO "E01"]
[WhiteElo "2084"]
[BlackElo "1920"]
[Annotator "NA"]
[PlyCount "117"]
[EventDate "2019.08.16"]
[EventType "swiss"]
[EventCountry "GGB"]
[SourceTitle "playchess.com"]
[Source "ChessBase"]
[SourceQuality "1"]
[TimeControl "6600+10"]

1. d4 {[%emt 0:00:00]} Nf6 {[%emt 0:00:00]} 2. Nf3 {[%emt 0:00:00]} e6 {[%emt 0:00:11]} 3. g3 {[%emt 0:00:07]} c5 {[%emt 0:00:13]} 4. c4 {[%emt 0:00:11]} cxd4 {[%emt 0:01:01]} 5. Nxd4 {[%emt 0:00:24]} Nc6 {[%emt 0:00:24]} 6. Bg2 {[%emt 0:00:39]} Qb6 {[%emt 0:02:21]} 7. Nxc6 {[%emt 0:01:50]} bxc6 {[%emt 0:02:05]} 8. O-O {[%emt 0:00:12]} d5 {[%emt 0:03:21]} 9. Nc3 {[%emt 0:02:10]} Be7 {[%emt 0:08:13]} 10. cxd5 {[%emt 0:03:51]} cxd5 {[%emt 0:00:15]} 11. e4 {[%emt 0:00:24]} O-O {[%emt 0:12:54]} 12. exd5 {[%emt 0:00:59]} Rd8 {[%emt 0:01:09]} 13. Qc2 {[%emt 0:00:56]} exd5 {[%emt 0:01:52]} 14. Be3 {[%emt 0:08:07]} Qc7 {[%emt 0:05:00]} 15. Rac1 {[%emt 0:01:20]} Qd7 {[%emt 0:19:21]} 16. Rfd1 {[%emt 0:01:28]} Bb7 {[%emt 0:00:08]} 17. Qb3 {[%emt 0:01:57]} Bc6 {[%emt 0:06:52]} 18. Bd4 {[%emt 0:06:05]} Rab8 {[%emt 0:02:46]} 19. Qc2 {[%emt 0:00:11]} Qb7 {[%emt 0:00:44]} 20. Rd2 {[%emt 0:23:09]} Rbc8 {[%emt 0:06:48]} 21. Bh3 {[%emt 0:00:41]} Bd7 {[%emt 0:00:20]} 22. Bxd7 {[%emt 0:00:24]} Rxd7 {[%emt 0:00:08]} 23. Qd3 {[%emt 0:06:13]} Rcd8 {[%emt 0:05:52]} 24. Rdc2 {[%emt 0:01:13]} Ne4 {[%emt 0:01:15]} 25. Nb5 {[%emt 0:04:05]} a6 {[%emt 0:03:35]} 26. Na7 {[%emt 0:00:48]} Bc5 {[%emt 0:02:16]} 27. Bxc5 {[%emt 0:00:13]} Nxc5 {[%emt 0:00:06]} 28. Rxc5 {[%emt 0:00:14]} Qxa7 {[%emt 0:00:05]} 29. Rxd5 {[%emt 0:00:10]} Qb7 {[%emt 0:01:12]} 30. Rxd7 {[%emt 0:01:13]} Rxd7 {[%emt 0:00:01]} 31. Qe4 {[%emt 0:02:21]} g6 {[%emt 0:00:32]} 32. Qxb7 {[%emt 0:02:05]} Rxb7 {[%emt 0:00:07]} 33. b3 {[%emt 0:00:05]} Rb6 {[%emt 0:00:15]} 34. Kg2 {[%emt 0:00:09]} Kg7 {[%emt 0:00:09]} 35. Rc4 {[%emt 0:00:08]} Kf6 {[%emt 0:00:16]} 36. Kf3 {[%emt 0:00:22]} Ke5 {[%emt 0:00:45]} 37. Ke3 {[%emt 0:00:45]} Kd5 {[%emt 0:02:10]} 38. f4 {[%emt 0:01:23]} Re6+ {[%emt 0:00:09]} 39. Kf3 {[%emt 0:00:10]} f5 {[%emt 0:00:47]} 40. Rc7 {[%emt 0:01:25]} h5 {[%emt 0:00:11]} 41. Rc4 {[%emt 0:00:13]} Re1 {[%emt 0:00:20]} 42. h3 {[%emt 0:01:03]} Re6 {[%emt 0:01:53]} 43. g4 {[%emt 0:00:32]} Rf6 {[%emt 0:02:13]} 44. Kg3 {[%emt 0:03:11]} Re6 {[%emt 0:02:10]} 45. gxf5 {[%emt 0:00:19]} gxf5 {[%emt 0:00:07]} 46. Kh4 {[%emt 0:00:18]} Re3 {[%emt 0:00:55]} 47. Kxh5 {[%emt 0:01:25]} Rg3 {[%emt 0:00:50]} 48. Ra4 {[%emt 0:01:56]} Ke6 {[%emt 0:00:59]} 49. Rxa6+ {[%emt 0:00:20]} Kf7 {[%emt 0:00:05]} 50. b4 {[%emt 0:00:48]} Ke7 {[%emt 0:01:41]} 51. b5 {[%emt 0:02:18]} Rg8 {[%emt 0:00:35]} 52. a4 {[%emt 0:00:30]} Kd7 {[%emt 0:00:19]} 53. a5 {[%emt 0:02:07]} Kc7 {[%emt 0:00:05]} 54. Rf6 {[%emt 0:00:23]} Rh8+ {[%emt 0:00:23]} 55. Kg5 {[%emt 0:00:15]} Rxh3 {[%emt 0:00:05]} 56. a6 {[%emt 0:00:23]} Kb8 {[%emt 0:00:09]} 57. b6 {[%emt 0:00:08]} Rh8 {[%emt 0:00:05]} 58. Kxf5 {[%emt 0:00:11]} Ka8 {[%emt 0:00:14]} 59. Kg6 {[%emt 0:00:28]} 1-0

[Event "Gibraltar Junior Intl U16 2019"]
[Site "Caleta"]
[Date "2019.08.18"]
[Round "4.3"]
[White "Krivenko, Dion"]
[Black "Perez Beltran, Salvador"]
[Result "0-1"]
[ECO "A08"]
[WhiteElo "1810"]
[BlackElo "2103"]
[Annotator "NA"]
[PlyCount "150"]
[EventDate "2019.08.16"]
[EventType "swiss"]
[EventCountry "GGB"]
[SourceTitle "playchess.com"]
[Source "ChessBase"]
[SourceQuality "1"]
[TimeControl "6600+10"]

1. e4 {[%emt 0:00:00]} c5 {[%emt 0:00:00]} 2. Nf3 {[%emt 0:00:00]} e6 {[%emt 0:00:04]} 3. d3 {[%emt 0:02:46]} d5 {[%emt 0:02:58]} 4. Nbd2 {[%emt 0:00:09]} Nc6 {[%emt 0:01:43]} 5. g3 {[%emt 0:00:18]} Nf6 {[%emt 0:00:51]} 6. Bg2 {[%emt 0:00:22]} g6 {[%emt 0:01:10]} 7. O-O {[%emt 0:00:14]} Bg7 {[%emt 0:00:07]} 8. Re1 {[%emt 0:00:07]} O-O {[%emt 0:01:18]} 9. c3 {[%emt 0:00:12]} b5 {[%emt 0:12:40]} 10. e5 {[%emt 0:05:48]} Nd7 {[%emt 0:00:18]} 11. d4 {[%emt 0:00:28]} f6 {[%emt 0:16:17]} 12. exf6 {[%emt 0:04:33]} Qxf6 {[%emt 0:00:20]} 13. Qe2 {[%emt 0:16:30]} cxd4 {[%emt 0:04:41]} 14. Qxb5 {[%emt 0:03:21]} Nde5 {[%emt 0:12:52]} 15. Rxe5 {[%emt 0:05:13]} Nxe5 {[%emt 0:00:39]} 16. cxd4 {[%emt 0:00:38]} Nxf3+ {[%emt 0:08:54]} 17. Nxf3 {[%emt 0:00:12]} Qf7 {[%emt 0:00:49]} 18. Bf4 {[%emt 0:02:27]} h6 {[%emt 0:04:13]} 19. Re1 {[%emt 0:04:26]} g5 {[%emt 0:01:19]} 20. Bd6 {[%emt 0:02:07]} Rd8 {[%emt 0:07:03]} 21. Ne5 {[%emt 0:02:58]} Qb7 {[%emt 0:05:59]} 22. Qxb7 {[%emt 0:01:22]} Bxb7 {[%emt 0:01:25]} 23. Bb4 {[%emt 0:00:19]} Bxe5 {[%emt 0:01:34]} 24. Rxe5 {[%emt 0:00:20]} Kf7 {[%emt 0:00:40]} 25. Bh3 {[%emt 0:01:28]} Re8 {[%emt 0:01:25]} 26. Bg4 {[%emt 0:00:39]} Kf6 {[%emt 0:00:48]} 27. Kf1 {[%emt 0:02:08]} Rac8 {[%emt 0:00:14]} 28. Bc3 {[%emt 0:00:58]} Ba6+ {[%emt 0:01:38]} 29. Ke1 {[%emt 0:01:13]} Bc4 {[%emt 0:00:05]} 30. a3 {[%emt 0:00:57]} Rc6 {[%emt 0:00:12]} 31. Kd2 {[%emt 0:00:44]} Rh8 {[%emt 0:00:41]} 32. Bh5 {[%emt 0:01:42]} Rf8 {[%emt 0:01:27]} 33. Bb4 {[%emt 0:04:07]} Rb8 {[%emt 0:00:24]} 34. Bc3 {[%emt 0:01:50]} a5 {[%emt 0:01:16]} 35. Bd1 {[%emt 0:02:50]} Rcb6 {[%emt 0:01:21]} 36. Kc1 {[%emt 0:01:57]} Ra6 {[%emt 0:01:27]} 37. Bg4 {[%emt 0:02:04]} Rf8 {[%emt 0:00:59]} 38. Kd2 {[%emt 0:04:40]} Rb6 {[%emt 0:04:14]} 39. Ke3 {[%emt 0:12:58]} Ra6 {[%emt 0:00:38]} 40. Kd2 {[%emt 0:00:45]} Kg6 {[%emt 0:04:05]} 41. Ke3 {[%emt 0:01:40]} Rf6 {[%emt 0:02:32]} 42. h4 {[%emt 0:02:20]} gxh4 {[%emt 0:00:15]} 43. gxh4 {[%emt 0:00:02]} Ba2 {[%emt 0:01:18]} 44. Be1 {[%emt 0:04:23]} Bb1 {[%emt 0:00:36]} 45. Bc3 {[%emt 0:01:30]} Be4 {[%emt 0:00:39]} 46. Be1 {[%emt 0:02:38]} Rb6 {[%emt 0:00:14]} 47. Bc3 {[%emt 0:00:11]} Ra6 {[%emt 0:00:25]} 48. Be1 {[%emt 0:00:08]} Bf5 {[%emt 0:00:01]} 49. Be2 {[%emt 0:01:24]} Ra7 {[%emt 0:00:03]} 50. Bd2 {[%emt 0:01:30]} Rf8 {[%emt 0:00:14]} 51. Bc3 {[%emt 0:01:23]} Kf6 {[%emt 0:00:17]} 52. Be1 {[%emt 0:01:21]} Rg8 {[%emt 0:00:20]} 53. Bf3 {[%emt 0:02:00]} Rg1 {[%emt 0:00:12]} 54. Bc3 {[%emt 0:00:00]} Bg4 {[%emt 0:01:24]} 55. Kf4 {[%emt 0:01:09]} Bxf3 {[%emt 0:00:12]} 56. Kxf3 {[%emt 0:00:01]} Rh1 {[%emt 0:00:29]} 57. h5 {[%emt 0:01:09]} a4 {[%emt 0:00:52]} 58. Bd2 {[%emt 0:00:26]} Rh7 {[%emt 0:00:01]} 59. Bc3 {[%emt 0:00:12]} Rh4 {[%emt 0:00:21]} 60. Kg3 {[%emt 0:00:24]} Rh1 {[%emt 0:00:16]} 61. Kf3 {[%emt 0:00:12]} Rf7 {[%emt 0:00:17]} 62. Bd2 {[%emt 0:00:13]} Rh7 {[%emt 0:00:16]} 63. Bc3 {[%emt 0:00:03]} Rf7 {[%emt 0:00:01]} 64. Bd2 {[%emt 0:00:01]} Kg7+ {[%emt 0:00:20]} 65. Ke2 {[%emt 0:00:01]} Rf6 {[%emt 0:00:06]} 66. Bc3 {[%emt 0:00:35]} Kf7 {[%emt 0:00:13]} 67. Bd2 {[%emt 0:00:07]} Rf5 {[%emt 0:00:08]} 68. Rxf5+ {[%emt 0:00:13]} exf5 {[%emt 0:00:01]} 69. Bxh6 {[%emt 0:00:01]} Rxh5 {[%emt 0:00:01]} 70. Bf4 {[%emt 0:00:07]} Ke6 {[%emt 0:00:04]} 71. Be5 {[%emt 0:00:22]} Rh3 {[%emt 0:00:11]} 72. Bg3 {[%emt 0:00:11]} Rh1 {[%emt 0:00:12]} 73. Kd2 {[%emt 0:00:01]} Rh7 {[%emt 0:00:15]} 74. Kc3 {[%emt 0:00:09]} Rb7 {[%emt 0:00:01]} 75. Kc2 {[%emt 0:00:21]} Rb3 {[%emt 0:00:11]} 0-1

[Event "Gibraltar Junior Intl U16 2019"]
[Site "Caleta"]
[Date "2019.08.18"]
[Round "4.4"]
[White "Howell, Oliver W"]
[Black "Kracht, Raphael"]
[Result "1/2-1/2"]
[ECO "A37"]
[WhiteElo "1847"]
[BlackElo "2072"]
[Annotator "NA"]
[PlyCount "71"]
[EventDate "2019.08.16"]
[EventType "swiss"]
[EventCountry "GGB"]
[SourceTitle "playchess.com"]
[Source "ChessBase"]
[SourceQuality "1"]
[TimeControl "6600+10"]

1. Nf3 {[%emt 0:00:00]} c5 {[%emt 0:00:00]} 2. c4 {[%emt 0:00:00]} Nc6 {[%emt 0:00:00]} 3. Nc3 {[%emt 0:00:05]} g6 {[%emt 0:04:08]} 4. g3 {[%emt 0:00:06]} Bg7 {[%emt 0:00:04]} 5. Bg2 {[%emt 0:00:11]} e6 {[%emt 0:00:05]} 6. O-O {[%emt 0:00:11]} Nge7 {[%emt 0:00:03]} 7. d4 {[%emt 0:00:40]} cxd4 {[%emt 0:03:24]} 8. Nb5 {[%emt 0:00:11]} d5 {[%emt 0:00:16]} 9. cxd5 {[%emt 0:02:17]} Nxd5 {[%emt 0:00:23]} 10. Nbxd4 {[%emt 0:01:19]} Nxd4 {[%emt 0:00:08]} 11. Nxd4 {[%emt 0:00:11]} O-O {[%emt 0:00:06]} 12. e4 {[%emt 0:03:34]} Nf6 {[%emt 0:25:33]} 13. Be3 {[%emt 0:18:49]} e5 {[%emt 0:09:23]} 14. Nb5 {[%emt 0:01:28]} Qa5 {[%emt 0:10:23]} 15. a4 {[%emt 0:11:19]} Rd8 {[%emt 0:01:02]} 16. b4 {[%emt 0:11:50]} Rxd1 {[%emt 0:01:21]} 17. bxa5 {[%emt 0:00:08]} Rxa1 {[%emt 0:01:17]} 18. Rxa1 {[%emt 0:00:10]} Bd7 {[%emt 0:08:21]} 19. Nxa7 {[%emt 0:05:27]} Bf8 {[%emt 0:26:37]} 20. Rb1 {[%emt 0:08:29]} Ng4 {[%emt 0:07:07]} 21. Rxb7 {[%emt 0:08:38]} Nxe3 {[%emt 0:01:17]} 22. Rxd7 {[%emt 0:01:11]} Nc4 {[%emt 0:00:24]} 23. Bf1 {[%emt 0:11:13]} Nxa5 {[%emt 0:01:53]} 24. Bb5 {[%emt 0:10:11]} Bc5 {[%emt 0:01:29]} 25. Nc6 {[%emt 0:00:24]} Nxc6 {[%emt 0:00:12]} 26. Bxc6 {[%emt 0:00:04]} Ra7 {[%emt 0:00:09]} 27. Rxa7 {[%emt 0:03:03]} Bxa7 {[%emt 0:00:08]} 28. a5 {[%emt 0:00:08]} Kf8 {[%emt 0:00:17]} 29. a6 {[%emt 0:01:09]} Ke7 {[%emt 0:02:12]} 30. Bd5 {[%emt 0:00:48]} f6 {[%emt 0:02:13]} 31. Kg2 {[%emt 0:00:31]} Bb6 {[%emt 0:00:24]} 32. f4 {[%emt 0:02:28]} g5 {[%emt 0:01:20]} 33. f5 {[%emt 0:01:40]} Ba7 {[%emt 0:00:29]} 34. Kf3 {[%emt 0:00:20]} Bb6 {[%emt 0:00:14]} 35. Kg4 {[%emt 0:01:50]} Kf8 {[%emt 0:00:04]} 36. Kf3 {[%emt 0:01:00]} 1/2-1/2

[Event "Gibraltar Junior Intl U16 2019"]
[Site "Caleta"]
[Date "2019.08.18"]
[Round "4.5"]
[White "Cuellar Montes, Alejandro"]
[Black "Gogia, Armaan"]
[Result "1-0"]
[ECO "E76"]
[WhiteElo "2143"]
[BlackElo "1754"]
[Annotator "NA"]
[PlyCount "73"]
[EventDate "2019.08.16"]
[EventType "swiss"]
[EventCountry "GGB"]
[SourceTitle "playchess.com"]
[Source "ChessBase"]
[SourceQuality "1"]
[TimeControl "6600+10"]

1. d4 {[%emt 0:00:00]} Nf6 {[%emt 0:00:00]} 2. c4 {[%emt 0:00:01]} g6 {[%emt 0:00:00]} 3. Nc3 {[%emt 0:00:08]} Bg7 {[%emt 0:00:00]} 4. e4 {[%emt 0:00:11]} d6 {[%emt 0:00:00]} 5. f4 {[%emt 0:00:07]} O-O {[%emt 0:00:06]} 6. Nf3 {[%emt 0:00:03]} c5 {[%emt 0:00:04]} 7. d5 {[%emt 0:00:04]} e6 {[%emt 0:00:03]} 8. dxe6 {[%emt 0:00:04]} fxe6 {[%emt 0:02:37]} 9. Bd3 {[%emt 0:00:07]} Nc6 {[%emt 0:01:34]} 10. O-O {[%emt 0:00:07]} a6 {[%emt 0:04:11]} 11. Ng5 {[%emt 0:03:08]} Nd4 {[%emt 0:04:27]} 12. Be3 {[%emt 0:03:09]} h6 {[%emt 0:04:53]} 13. Nh3 {[%emt 0:04:17]} e5 {[%emt 0:08:19]} 14. f5 {[%emt 0:00:34]} gxf5 {[%emt 0:02:01]} 15. exf5 {[%emt 0:00:14]} Qe8 {[%emt 0:02:24]} 16. Qb1 {[%emt 0:33:06]} Bd7 {[%emt 0:21:20]} 17. Nf2 {[%emt 0:09:03]} Qh5 {[%emt 0:04:49]} 18. Bxd4 {[%emt 0:03:45]} cxd4 {[%emt 0:00:46]} 19. Ne2 {[%emt 0:00:46]} Ng4 {[%emt 0:04:57]} 20. Nxg4 {[%emt 0:00:52]} Qxg4 {[%emt 0:00:06]} 21. Ng3 {[%emt 0:00:22]} Bc6 {[%emt 0:02:26]} 22. Qc2 {[%emt 0:07:11]} Rac8 {[%emt 0:03:55]} 23. Rae1 {[%emt 0:02:28]} Kh8 {[%emt 0:05:11]} 24. Qb3 {[%emt 0:02:49]} Bf6 {[%emt 0:05:56]} 25. Be4 {[%emt 0:02:22]} Bh4 {[%emt 0:09:41]} 26. Rf3 {[%emt 0:15:09]} Rc7 {[%emt 0:05:39]} 27. Qb6 {[%emt 0:05:21]} Rg7 {[%emt 0:01:34]} 28. Bxc6 {[%emt 0:01:33]} bxc6 {[%emt 0:00:17]} 29. Qxc6 {[%emt 0:00:16]} Bxg3 {[%emt 0:01:00]} 30. hxg3 {[%emt 0:00:18]} Rf6 {[%emt 0:04:54]} 31. c5 {[%emt 0:00:23]} Qg5 {[%emt 0:03:01]} 32. cxd6 {[%emt 0:01:00]} Qd2 {[%emt 0:01:28]} 33. Qe8+ {[%emt 0:00:35]} Kh7 {[%emt 0:00:11]} 34. Qxe5 {[%emt 0:00:04]} Rxd6 {[%emt 0:00:18]} 35. f6 {[%emt 0:01:30]} Rf7 {[%emt 0:01:35]} 36. Qf5+ {[%emt 0:00:05]} Kh8 {[%emt 0:00:33]} 37. Re8+ {[%emt 0:00:06]} 1-0

[Event "Gibraltar Junior Intl U16 2019"]
[Site "Caleta"]
[Date "2019.08.18"]
[Round "4.6"]
[White "Volovich, Julia"]
[Black "Akeya-Price, Robert"]
[Result "1-0"]
[ECO "E36"]
[WhiteElo "1726"]
[BlackElo "1988"]
[Annotator "NA"]
[PlyCount "111"]
[EventDate "2019.08.16"]
[EventType "swiss"]
[EventCountry "GGB"]
[SourceTitle "playchess.com"]
[Source "ChessBase"]
[SourceQuality "1"]
[TimeControl "6600+10"]

1. d4 {[%emt 0:00:00]} Nf6 {[%emt 0:00:00]} 2. c4 {[%emt 0:00:00]} e6 {[%emt 0:00:01]} 3. Nc3 {[%emt 0:00:00]} Bb4 {[%emt 0:00:07]} 4. Qc2 {[%emt 0:00:05]} d5 {[%emt 0:00:17]} 5. a3 {[%emt 0:00:10]} Bxc3+ {[%emt 0:01:15]} 6. Qxc3 {[%emt 0:00:07]} O-O {[%emt 0:00:31]} 7. Bg5 {[%emt 0:01:16]} c6 {[%emt 0:00:29]} 8. e3 {[%emt 0:05:15]} Nbd7 {[%emt 0:00:51]} 9. Nf3 {[%emt 0:03:53]} Re8 {[%emt 0:01:35]} 10. Bd3 {[%emt 0:12:51]} h6 {[%emt 0:03:06]} 11. Bh4 {[%emt 0:01:18]} dxc4 {[%emt 0:04:28]} 12. Qxc4 {[%emt 0:10:09]} e5 {[%emt 0:11:29]} 13. Nxe5 {[%emt 0:18:27]} Nxe5 {[%emt 0:00:21]} 14. dxe5 {[%emt 0:00:09]} Rxe5 {[%emt 0:02:44]} 15. Qc3 {[%emt 0:05:23]} Qe7 {[%emt 0:05:26]} 16. O-O {[%emt 0:02:14]} Bf5 {[%emt 0:04:48]} 17. Bc4 {[%emt 0:12:15]} Re8 {[%emt 0:26:38]} 18. Rac1 {[%emt 0:21:01]} b5 {[%emt 0:15:37]} 19. Ba2 {[%emt 0:02:32]} Bd7 {[%emt 0:05:50]} 20. Rfd1 {[%emt 0:02:40]} Ne4 {[%emt 0:05:25]} 21. Bxe7 {[%emt 0:00:07]} Nxc3 {[%emt 0:00:03]} 22. Rxc3 {[%emt 0:00:17]} R8xe7 {[%emt 0:01:28]} 23. b4 {[%emt 0:02:16]} g5 {[%emt 0:07:05]} 24. h3 {[%emt 0:01:07]} Kg7 {[%emt 0:00:31]} 25. Rd6 {[%emt 0:02:21]} f5 {[%emt 0:01:13]} 26. Bb1 {[%emt 0:00:37]} f4 {[%emt 0:01:59]} 27. Rg6+ {[%emt 0:00:34]} Kf7 {[%emt 0:00:06]} 28. Rxh6 {[%emt 0:00:52]} fxe3 {[%emt 0:04:34]} 29. Rh7+ {[%emt 0:00:16]} Kf6 {[%emt 0:00:35]} 30. Rh6+ {[%emt 0:00:14]} Kg7 {[%emt 0:01:06]} 31. Rh7+ {[%emt 0:00:03]} Kf6 {[%emt 0:00:03]} 32. Rxe7 {[%emt 0:00:11]} exf2+ {[%emt 0:00:33]} 33. Kxf2 {[%emt 0:00:07]} Rxe7 {[%emt 0:00:38]} 34. Rf3+ {[%emt 0:02:36]} Ke5 {[%emt 0:02:18]} 35. Re3+ {[%emt 0:00:34]} Kf6 {[%emt 0:00:03]} 36. Rxe7 {[%emt 0:00:27]} Kxe7 {[%emt 0:00:01]} 37. Ke3 {[%emt 0:00:15]} Be6 {[%emt 0:02:25]} 38. Kd4 {[%emt 0:00:43]} Kd6 {[%emt 0:00:10]} 39. Be4 {[%emt 0:00:07]} Bc4 {[%emt 0:00:17]} 40. g3 {[%emt 0:00:21]} Be6 {[%emt 0:00:14]} 41. Bg2 {[%emt 0:00:20]} Bf5 {[%emt 0:00:07]} 42. h4 {[%emt 0:00:04]} gxh4 {[%emt 0:00:10]} 43. gxh4 {[%emt 0:00:01]} Bg4 {[%emt 0:00:12]} 44. Be4 {[%emt 0:00:02]} Bh5 {[%emt 0:00:02]} 45. Bd3 {[%emt 0:00:06]} Kd7 {[%emt 0:00:28]} 46. Kc5 {[%emt 0:00:08]} Bf3 {[%emt 0:00:06]} 47. Bg6 {[%emt 0:00:05]} Ke6 {[%emt 0:00:08]} 48. Be8 {[%emt 0:00:08]} Kf5 {[%emt 0:00:11]} 49. Bxc6 {[%emt 0:00:02]} Bxc6 {[%emt 0:00:11]} 50. Kxc6 {[%emt 0:00:02]} Kg4 {[%emt 0:00:04]} 51. Kxb5 {[%emt 0:00:02]} Kxh4 {[%emt 0:00:01]} 52. Ka6 {[%emt 0:00:00]} Kg4 {[%emt 0:00:02]} 53. Kxa7 {[%emt 0:00:01]} Kf5 {[%emt 0:00:01]} 54. b5 {[%emt 0:00:01]} Ke6 {[%emt 0:00:01]} 55. b6 {[%emt 0:00:01]} Kd5 {[%emt 0:00:01]} 56. b7 {[%emt 0:00:01]} 1-0

[Event "Gibraltar Junior Intl U16 2019"]
[Site "Caleta"]
[Date "2019.08.18"]
[Round "4.7"]
[White "Serrano Almendros, Alejandro"]
[Black "Shepherd, Tom"]
[Result "1/2-1/2"]
[ECO "D41"]
[WhiteElo "1922"]
[BlackElo "1659"]
[Annotator "NA"]
[PlyCount "100"]
[EventDate "2019.08.16"]
[EventType "swiss"]
[EventCountry "GGB"]
[SourceTitle "playchess.com"]
[Source "ChessBase"]
[SourceQuality "1"]
[TimeControl "6600+10"]

1. d4 {[%emt 0:00:00]} d5 {[%emt 0:00:00]} 2. c4 {[%emt 0:00:00]} e6 {[%emt 0:00:00]} 3. Nc3 {[%emt 0:00:04]} Nf6 {[%emt 0:00:00]} 4. cxd5 {[%emt 0:00:06]} Nxd5 {[%emt 0:00:03]} 5. e4 {[%emt 0:01:01]} Nxc3 {[%emt 0:00:27]} 6. bxc3 {[%emt 0:00:25]} c5 {[%emt 0:00:04]} 7. Nf3 {[%emt 0:00:47]} cxd4 {[%emt 0:00:07]} 8. cxd4 {[%emt 0:00:09]} Bb4+ {[%emt 0:00:04]} 9. Bd2 {[%emt 0:00:12]} Bxd2+ {[%emt 0:00:03]} 10. Qxd2 {[%emt 0:00:27]} O-O {[%emt 0:00:04]} 11. Bc4 {[%emt 0:07:21]} Nd7 {[%emt 0:00:09]} 12. O-O {[%emt 0:02:16]} b6 {[%emt 0:00:11]} 13. Rfe1 {[%emt 0:09:09]} Bb7 {[%emt 0:00:13]} 14. Rad1 {[%emt 0:04:41]} Rc8 {[%emt 0:01:35]} 15. Bb3 {[%emt 0:00:42]} Re8 {[%emt 0:00:19]} 16. Qd3 {[%emt 0:11:49]} Qc7 {[%emt 0:10:33]} 17. Rd2 {[%emt 0:03:24]} Qf4 {[%emt 0:19:06]} 18. g3 {[%emt 0:27:09]} Qg4 {[%emt 0:18:38]} 19. Bd1 {[%emt 0:01:06]} Qg6 {[%emt 0:18:11]} 20. Nh4 {[%emt 0:01:49]} Qg5 {[%emt 0:03:45]} 21. f4 {[%emt 0:01:45]} Qe7 {[%emt 0:01:09]} 22. Bf3 {[%emt 0:07:18]} Qb4 {[%emt 0:02:19]} 23. Rb1 {[%emt 0:02:58]} Qc3 {[%emt 0:01:31]} 24. Rb3 {[%emt 0:01:22]} Qxd3 {[%emt 0:00:48]} 25. Rbxd3 {[%emt 0:00:02]} Nf6 {[%emt 0:01:18]} 26. d5 {[%emt 0:08:33]} exd5 {[%emt 0:02:15]} 27. exd5 {[%emt 0:00:12]} Rc1+ {[%emt 0:03:59]} 28. Kg2 {[%emt 0:02:26]} g6 {[%emt 0:05:39]} 29. g4 {[%emt 0:02:48]} Rd8 {[%emt 0:02:41]} 30. Rd4 {[%emt 0:02:03]} Rc5 {[%emt 0:02:33]} 31. d6 {[%emt 0:01:00]} Bxf3+ {[%emt 0:01:46]} 32. Kxf3 {[%emt 0:00:07]} Rc3+ {[%emt 0:00:13]} 33. Kg2 {[%emt 0:03:37]} Rc6 {[%emt 0:03:45]} 34. h3 {[%emt 0:02:00]} Kf8 {[%emt 0:02:37]} 35. Nf3 {[%emt 0:00:41]} Nd7 {[%emt 0:01:04]} 36. Ne5 {[%emt 0:01:38]} Nxe5 {[%emt 0:01:58]} 37. fxe5 {[%emt 0:00:01]} Rc5 {[%emt 0:00:09]} 38. Re4 {[%emt 0:01:03]} Ke8 {[%emt 0:00:43]} 39. Rf2 {[%emt 0:01:56]} Rcc8 {[%emt 0:02:18]} 40. Ref4 {[%emt 0:00:19]} Rc5 {[%emt 0:00:10]} 41. Rxf7 {[%emt 0:01:04]} Rxe5 {[%emt 0:00:01]} 42. Rf8+ {[%emt 0:00:00]} Kd7 {[%emt 0:00:01]} 43. R2f7+ {[%emt 0:00:04]} Ke6 {[%emt 0:00:01]} 44. Re7+ {[%emt 0:00:01]} Kxd6 {[%emt 0:00:06]} 45. Rxd8+ {[%emt 0:00:58]} Kxe7 {[%emt 0:00:03]} 46. Rh8 {[%emt 0:00:05]} Re2+ {[%emt 0:00:20]} 47. Kf3 {[%emt 0:00:01]} Rxa2 {[%emt 0:00:01]} 48. Rxh7+ {[%emt 0:00:01]} Kf6 {[%emt 0:00:01]} 49. h4 {[%emt 0:00:21]} Ra3+ {[%emt 0:01:10]} 50. Kf4 {[%emt 0:00:06]} Ra4+ {[%emt 0:00:01] Ke4 Ke5+} 1/2-1/2

[Event "Gibraltar Junior Intl U16 2019"]
[Site "Caleta"]
[Date "2019.08.18"]
[Round "4.9"]
[White "Nayak, Aurideep"]
[Black "Maldonado Mena, German"]
[Result "0-1"]
[ECO "C26"]
[WhiteElo "1546"]
[BlackElo "1850"]
[Annotator "NA"]
[PlyCount "40"]
[EventDate "2019.08.16"]
[EventType "swiss"]
[EventCountry "GGB"]
[SourceTitle "playchess.com"]
[Source "ChessBase"]
[SourceQuality "1"]
[TimeControl "6600+10"]

1. e4 {[%emt 0:00:12]} e5 {[%emt 0:00:37]} 2. Nc3 {[%emt 0:00:21]} Nf6 {[%emt 0:00:58]} 3. g3 {[%emt 0:00:29]} Bc5 {[%emt 0:01:06]} 4. Bg2 {[%emt 0:01:30]} d6 {[%emt 0:00:45]} 5. Na4 {[%emt 0:01:09]} Bb6 {[%emt 0:01:32]} 6. Nxb6 {[%emt 0:00:30]} axb6 {[%emt 0:00:06]} 7. Ne2 {[%emt 0:00:10]} Be6 {[%emt 0:00:29]} 8. O-O {[%emt 0:00:39]} Nc6 {[%emt 0:00:44]} 9. a3 {[%emt 0:02:52]} d5 {[%emt 0:01:44]} 10. d3 {[%emt 0:00:52]} h6 {[%emt 0:02:23]} 11. f4 {[%emt 0:01:47]} dxe4 {[%emt 0:01:04]} 12. dxe4 {[%emt 0:04:18]} Qe7 {[%emt 0:05:26]} 13. Qe1 {[%emt 0:06:06]} Qc5+ {[%emt 0:01:29]} 14. Qf2 {[%emt 0:03:50]} Qxc2 {[%emt 0:01:06]} 15. fxe5 {[%emt 0:08:15]} Ng4 {[%emt 0:10:20]} 16. Qe1 {[%emt 0:04:17]} Bc4 {[%emt 0:03:14]} 17. Bd2 {[%emt 0:26:15]} Rd8 {[%emt 0:02:41]} 18. Rc1 {[%emt 0:06:47]} Qxd2 {[%emt 0:03:50]} 19. Qxd2 {[%emt 0:01:15]} Rxd2 {[%emt 0:00:09]} 20. Rxc4 {[%emt 0:01:32]} Ne3 {[%emt 0:00:27]} 0-1